fUSD/lending_fUSD_20240704
["ID","MTS","AMOUNT","RATE_DAILY","PERIOD"]
[331077910,1720066250311,-895.81,0.00021917,4]
[331077912,1720066250322,-895.81,0.00021917,4]
[331077914,1720066250332,-500.0,0.00021917,4]
[331077916,1720066250341,-500.0,0.00021917,4]
[331077918,1720066250351,-500.0,0.00021917,4]
[331077920,1720066250361,-500.0,0.00021917,4]
[331077922,1720066250370,-912.0,0.00021917,4]
[331077924,1720066250379,-500.0,0.00021917,4]
[331077926,1720066250388,-912.0,0.00021917,4]
[331077928,1720066250398,-912.0,0.00021917,4]
[331077930,1720066250407,-912.0,0.00021917,4]
[331077932,1720066250416,-500.0,0.00021917,4]
[331077934,1720066250425,-912.0,0.00021917,4]
[331077936,1720066250435,-912.0,0.00021917,4]
[331077938,1720066250445,-500.0,0.00021917,4]
[331077940,1720066250454,-500.0,0.00021917,4]
[331077942,1720066250464,-500.0,0.00021917,4]
[331077944,1720066250473,-500.0,0.00021917,4]
[331077946,1720066250482,-533.14129219,0.00021917,4]
[331077948,1720066250491,-500.0,0.00021917,4]
[331077950,1720066250501,-500.0,0.00021917,4]
[331077952,1720066250511,-307.54705132,0.00021917,4]
[331077954,1720066250520,-500.0,0.00021917,4]
[331077956,1720066250529,-500.0,0.00021917,4]
[331077958,1720066250538,-500.0,0.00021917,4]
[331077960,1720066250548,-500.0,0.00021917,4]
[331077962,1720066250558,-500.0,0.00021917,4]
[331077965,1720066250567,-500.0,0.00021917,4]
[331077967,1720066250577,-738.76,0.00021917,4]
[331077969,1720066250586,-738.76,0.00021917,4]
[331077971,1720066250596,-738.76,0.00021917,4]
[331077973,1720066250609,-738.76,0.00021917,4]
[331077975,1720066250618,-581.30054318,0.00021917,4]
[331077977,1720066250628,-738.76,0.00021917,4]
[331077979,1720066250637,-738.76,0.00021917,4]
[331077981,1720066250648,-738.76,0.00021917,4]
[331077982,1720066250657,-500.0,0.00021917,4]
[331077985,1720066250666,-738.76,0.00021917,4]
[331077987,1720066250676,-500.0,0.00021917,4]
[331077989,1720066250686,-500.0,0.00021917,4]
[331077991,1720066250696,-500.0,0.00021917,4]
[331077993,1720066250706,-500.0,0.00021917,4]
[331077995,1720066250716,-500.0,0.00021917,4]
[331077997,1720066250725,-500.0,0.00021917,4]
[331077999,1720066250735,-500.0,0.00021917,4]
[331078001,1720066250744,-500.0,0.00021917,4]
[331078003,1720066250753,-500.0,0.00021917,4]
[331078005,1720066250762,-500.0,0.00021917,4]
[331078007,1720066250772,-500.0,0.00021917,4]
[331078009,1720066250781,-500.0,0.00021917,4]
[331078011,1720066250790,-500.0,0.00021917,4]
[331078013,1720066250800,-173.16407803,0.00021917,4]
[331078015,1720066250809,-500.0,0.00021917,4]
[331078017,1720066250819,-1707.16,0.00021917,4]
[331078019,1720066250829,-1707.16,0.00021917,4]
[331078021,1720066250839,-500.0,0.00021917,4]
[331078023,1720066250849,-1707.16,0.00021917,4]
[331078025,1720066250858,-1707.16,0.00021917,4]
[331078027,1720066250868,-1707.16,0.00021917,4]
[331078029,1720066250877,-500.0,0.00021917,4]
[331078031,1720066250887,-1707.16,0.00021917,4]
[331078033,1720066250896,-500.0,0.00021917,4]
[331078035,1720066250909,-500.0,0.00021917,4]
[331078037,1720066250919,-500.0,0.00021917,4]
[331078039,1720066250929,-500.0,0.00021917,4]
[331078041,1720066250938,-500.0,0.00021917,4]
[331078043,1720066250948,-500.0,0.00021917,4]
[331078045,1720066250957,-500.0,0.00021917,4]
[331078047,1720066250967,-500.0,0.00021917,4]
[331078049,1720066250977,-500.0,0.00021917,4]
[331078052,1720066250986,-500.0,0.00021917,4]
[331078054,1720066250996,-500.0,0.00021917,4]
[331078056,1720066251006,-500.0,0.00021917,4]
[331078058,1720066251015,-500.0,0.00021917,4]
[331078060,1720066251025,-500.0,0.00021917,4]
[331078062,1720066251034,-500.0,0.00021917,4]
[331078064,1720066251043,-500.0,0.00021917,4]
[331078066,1720066251053,-353.40561761,0.00021917,4]
[331078068,1720066251062,-500.0,0.00021917,4]
[331078070,1720066251072,-500.0,0.00021917,4]
[331078072,1720066251083,-500.0,0.00021917,4]
[331078074,1720066251092,-500.0,0.00021917,4]
[331078076,1720066251102,-500.0,0.00021917,4]
[331078078,1720066251112,-500.0,0.00021917,4]
[331078081,1720066251122,-500.0,0.00021917,4]
[331078083,1720066251132,-500.0,0.00021917,4]
[331078085,1720066251142,-500.0,0.00021917,4]
[331078087,1720066251151,-500.0,0.00021917,4]
[331078089,1720066251161,-500.0,0.00021917,4]
[331078091,1720066251171,-328.9268014,0.00021917,4]
[331078093,1720066251180,-167.41195419,0.00021917,4]
[331078095,1720066251189,-500.0,0.00021917,4]
[331078097,1720066251199,-332.12472416,0.00021917,4]
[331078099,1720066251208,-500.0,0.00021917,4]
[331078101,1720066251218,-500.0,0.00021917,4]
[331078103,1720066251228,-500.0,0.00021917,4]
[331078105,1720066251238,-500.0,0.00021917,4]
[331078107,1720066251247,-500.0,0.00021917,4]
[331078109,1720066251256,-500.0,0.00021917,4]
[331078111,1720066251266,-511.61273274,0.00021917,4]
[331078113,1720066251275,-500.0,0.00021917,4]
[331078115,1720066251284,-521.4794405,0.00021917,4]
[331078117,1720066251294,-500.0,0.00021917,4]
[331078119,1720066251304,-500.0,0.00021917,4]
[331078121,1720066251313,-500.0,0.00021917,4]
[331078123,1720066251324,-500.0,0.00021917,4]
[331078125,1720066251335,-522.54788645,0.00021917,4]
[331078128,1720066251345,-500.0,0.00021917,4]
[331078130,1720066251355,-500.0,0.00021917,4]
[331078132,1720066251364,-500.0,0.00021917,4]
[331078134,1720066251373,-500.0,0.00021917,4]
[331078136,1720066251383,-500.0,0.00021917,4]
[331078138,1720066251392,-500.0,0.00021917,4]
[331078140,1720066251401,-500.0,0.00021917,4]
[331078142,1720066251411,-508.13260078,0.00021917,4]
[331078144,1720066251420,-500.0,0.00021917,4]
[331078146,1720066251429,-500.0,0.00021917,4]
[331078148,1720066251439,-500.0,0.00021917,4]
[331078150,1720066251448,-500.0,0.00021917,4]
[331078152,1720066251458,-500.0,0.00021917,4]
[331078154,1720066251467,-500.0,0.00021917,4]
[331078156,1720066251476,-500.0,0.00021917,4]
[331078158,1720066251486,-500.0,0.00021917,4]
[331078160,1720066251496,-500.0,0.00021917,4]
[331078162,1720066251505,-500.0,0.00021917,4]
[331078164,1720066251514,-353.18169866,0.00021917,4]
[331078166,1720066251523,-500.0,0.00021917,4]
[331078169,1720066251532,-500.0,0.00021917,4]
[331078171,1720066251542,-500.0,0.00021917,4]
[331078173,1720066251551,-500.0,0.00021917,4]
[331078175,1720066251560,-611.82641382,0.00021917,4]
[331078177,1720066251569,-500.0,0.00021917,4]
[331078179,1720066251580,-632.96675255,0.00021917,4]
[331078181,1720066251589,-500.0,0.00021917,4]
[331078183,1720066251599,-500.0,0.00021917,4]
[331078185,1720066251613,-500.0,0.00021917,4]
[331078187,1720066251623,-500.0,0.00021917,4]
[331078189,1720066251632,-308.10304535,0.00021917,4]
[331078191,1720066251642,-526.47456572,0.00021917,4]
[331078193,1720066251653,-524.18,0.00021917,4]
[331078195,1720066251663,-524.18,0.00021917,4]
[331078197,1720066251672,-524.18,0.00021917,4]
[331078199,1720066251684,-524.18,0.00021917,4]
[331078201,1720066251694,-524.18,0.00021917,4]
[331078203,1720066251704,-524.18,0.00021917,4]
[331078205,1720066251714,-542.85904252,0.00021917,4]
[331078207,1720066251723,-500.0,0.00021917,4]
[331078209,1720066251733,-500.0,0.00021917,4]
[331078211,1720066251742,-500.0,0.00021917,4]
[331078213,1720066251752,-550.10938349,0.00021917,4]
[331078215,1720066251762,-500.0,0.00021917,4]
[331078217,1720066251771,-500.0,0.00021917,4]
[331078219,1720066251781,-230.27764537,0.00021917,4]
[331078221,1720066251790,-500.0,0.00021917,4]
[331078223,1720066251799,-500.0,0.00021917,4]
[331078225,1720066251809,-500.0,0.00021917,4]
[331078227,1720066251820,-500.0,0.00021917,4]
[331078229,1720066251830,-500.0,0.00021917,4]
[331078232,1720066251839,-500.0,0.00021917,4]
[331078234,1720066251850,-500.0,0.00021917,4]
[331078236,1720066251859,-500.0,0.00021917,4]
[331078237,1720066251868,-500.0,0.00021917,4]
[331078238,1720066251877,-500.0,0.00021917,4]
[331078239,1720066251886,-564.98919908,0.00021917,4]
[331078240,1720066251895,-500.0,0.00021917,4]
[331078241,1720066251904,-500.0,0.00021917,4]
[331078242,1720066251913,-500.0,0.00021917,4]
[331078243,1720066251922,-500.0,0.00021917,4]
[331078244,1720066251933,-500.0,0.00021917,4]
[331078245,1720066251942,-576.6565671,0.00021917,4]
[331078247,1720066251952,-532.7959457,0.00021917,4]
[331078249,1720066251961,-500.0,0.00021917,4]
[331078251,1720066251971,-500.0,0.00021917,4]
[331078252,1720066251980,-299.10597472,0.00021917,4]
[331078253,1720066251990,-606.46916974,0.00021917,4]
[331078254,1720066251999,-517.78565236,0.00021917,4]
[331078255,1720066252008,-500.0,0.00021917,4]
[331078256,1720066252017,-425.37152185,0.00021917,4]
[331078257,1720066252026,-500.0,0.00021917,4]
[331078258,1720066252036,-500.0,0.00021917,4]
[331078259,1720066252045,-500.0,0.00021917,4]
[331078260,1720066252054,-500.0,0.00021917,4]
[331078261,1720066252064,-510.95409584,0.00021917,4]
[331078262,1720066252073,-500.0,0.00021917,4]
[331078263,1720066252083,-500.0,0.00021917,4]
[331078264,1720066252092,-500.0,0.00021917,4]
[331078265,1720066252101,-500.0,0.00021917,4]
[331078266,1720066252110,-500.0,0.00021917,4]
[331078267,1720066252120,-500.0,0.00021917,4]
[331078268,1720066252129,-500.0,0.00021917,4]
[331078269,1720066252138,-500.0,0.00021917,4]
[331078270,1720066252147,-395.04641104,0.00021917,4]
[331078271,1720066252157,-500.0,0.00021917,4]
[331078272,1720066252167,-539.83987896,0.00021917,4]
[331078273,1720066252176,-615.43324415,0.00021917,4]
[331078274,1720066252186,-500.0,0.00021917,4]
[331078275,1720066252196,-500.0,0.00021917,4]
[331078276,1720066252205,-500.0,0.00021917,4]
[331078277,1720066252214,-2663.36,0.00021917,4]
[331078278,1720066252223,-2663.36,0.00021917,4]
[331078279,1720066252233,-2663.36,0.00021917,4]
[331078280,1720066252242,-500.0,0.00021917,4]
[331078281,1720066252251,-2663.36,0.00021917,4]
[331078282,1720066252264,-2663.36,0.00021917,4]
[331078283,1720066252273,-467.04521015,0.00021917,4]
[331078284,1720066252298,-2196.31478985,0.00021917,4]
[331078285,1720066252307,-533.49961489,0.00021917,4]
[331078310,1720066394659,508.026682,0.000256,120]
[331078311,1720066397172,3000.0,0.000256,120]
[331078312,1720066400314,208.565622,0.00025171,120]
[331078313,1720066449839,15510.34784357,0.00011199,2]
[331078315,1720066582671,19678.91890984,0.00026,120]
[331078316,1720066604991,152.75223498,0.00025999,120]
[331078317,1720066608959,3074.13216953,0.00011199,2]
[331078318,1720066750524,1903.03082168,0.00011199,2]
[331078319,1720066771197,217.36074596,0.00026,120]
[331078320,1720066802273,968.7710348,0.00025,60]
[331078321,1720066818700,721.36501093,0.00011199,2]
[331078324,1720066994469,798.0,0.00025,60]
[331078327,1720067040806,191.82455405,0.00011199,2]
[331078328,1720067072844,227.14852012,0.00011199,2]
[331078330,1720067151091,380.51057576,0.00011199,2]
[331078331,1720067171728,721.36501093,0.00011199,2]
[331078335,1720067232953,1270.37297567,0.00011199,2]
[331078362,1720067431685,-227.14852012,0.00012314,2]
[331078363,1720067431696,-721.36501093,0.00013128,2]
[331078364,1720067431707,-166.04615262,0.00013372,2]
[331078365,1720067431719,-276.54348187,0.00013543,2]
[331078366,1720067431729,-155.0,0.00013543,2]
[331078367,1720067431741,-544.39,0.00018309,2]
[331078368,1720067431755,-300.0,0.00019451,2]
[331078369,1720067431767,-499.99,0.00019452,2]
[331078370,1720067431778,-1462.23,0.00019726,2]
[331078371,1720067431789,-250.0,0.00019791,2]
[331078372,1720067431800,-1637.28,0.00019873,2]
[331078373,1720067431811,-150.0,0.00019874,2]
[331078374,1720067431821,-250.0,0.0001999,2]
[331078375,1720067431833,-184.8432415,0.0002,2]
[331078376,1720067431843,-1344.4,0.00020133,2]
[331078377,1720067431853,-235.09,0.00020163,2]
[331078378,1720067431864,-1637.25231561,0.000202,5]
[331078379,1720067431882,-637.43298754,0.000202,5]
[331078380,1720067431900,-6867.10994785,0.000202,5]
[331078381,1720067431926,-335.08950845,0.000202,5]
[331078382,1720067431938,-276.52,0.000202,5]
[331078383,1720067431952,-432.000004,0.000202,5]
[331078384,1720067431967,-455.85444,0.000202,5]
[331078385,1720067431986,-840.74079655,0.000202,5]
[331078387,1720067431997,-13078.71108693,0.00020227,2]
[331078388,1720067432011,-648.0,0.00020227,2]
[331078389,1720067432023,-2901.4,0.00020227,2]
[331078390,1720067432035,-1029.63690608,0.00020227,2]
[331078391,1720067432049,-707.82529793,0.00020227,2]
[331078392,1720067438060,-521.94426828,0.00012314,2]
[331078393,1720067438070,-128.90338618,0.00019354,2]
[331078394,1720067438139,-195.68863561,0.00019354,2]
[331078395,1720067438150,-422.99419247,0.00020227,2]
[331078396,1720067438163,-2788.33634707,0.00020227,2]
[331078397,1720067438177,-2323.09616952,0.00020227,2]
[331078398,1720067438190,-1162.66,0.00020268,2]
[331078399,1720067438201,-168.25,0.00020463,2]
[331078400,1720067438212,-544.39,0.00020573,2]
[331078401,1720067438223,-500.0,0.0002072,2]
[331078402,1720067438234,-1006.53505819,0.00020999,2]
[331078403,1720067438245,-64.01908437,0.00021426,2]
[331078404,1720067438260,-4935.98091563,0.00021426,2]
[331078405,1720067438271,-1000.0,0.00021458,2]
[331078406,1720067438282,-157.98,0.00021644,2]
[331078407,1720067438292,-250.33,0.00021644,2]
[331078408,1720067438302,-180.0,0.00021678,2]
[331078409,1720067438312,-4170.4117,0.00021717,2]
[331078410,1720067438323,-1866.7433,0.00021717,2]
[331078411,1720067438334,-685.36962438,0.00021717,2]
[331078412,1720067438351,-314.63037562,0.00021717,2]
[331078413,1720067438362,-90.87997632,0.00021717,2]
[331078414,1720067438375,-2409.12002368,0.00021717,2]
[331078415,1720067438386,-275.73739761,0.00021717,2]
[331078416,1720067438396,-172.10478885,0.00021717,2]
[331078417,1720067438407,-2750.55071264,0.00021717,2]
[331078418,1720067438417,-866.14002722,0.00021739,2]
[331078419,1720067438431,-1233.85997278,0.00021739,2]
[331078420,1720067438442,-500.0,0.00021741,2]
[331078421,1720067438453,-200.0,0.00021741,2]
[331078422,1720067438463,-514.56385471,0.00021817,2]
[331078423,1720067438476,-29546.44786032,0.00021817,2]
[331078424,1720067438488,-1886.88,0.00021817,2]
[331078426,1720067438502,-6516.51,0.00021817,2]
[331078428,1720067438521,-452.80923572,0.00021817,2]
[331078431,1720067438539,-2361.38289826,0.00021817,2]
[331078545,1720067439804,-260.76306192,0.00021817,2]
[331078563,1720067439972,-5348.04718558,0.00021817,2]
[331078565,1720067439988,-6475.01292365,0.00021817,2]
[331078568,1720067440004,-534.43095389,0.00021817,2]
[331078581,1720067440132,-162218.2589662,0.00021817,2]
[331078584,1720067440147,-1563.63622335,0.00021817,2]
[331078586,1720067440162,-744.63634586,0.00021817,2]
[331078593,1720067440225,-1995.73214942,0.00021817,2]
[331078596,1720067440243,-2326.50000047,0.00021817,2]
[331078875,1720067442937,-1598.25883587,0.00021817,2]
[331078892,1720067443094,-20656.12950478,0.00021817,2]
[331078894,1720067443104,-1000.0,0.00021817,2]
[331078896,1720067443114,-275.73739753,0.00021847,2]
[331078898,1720067443124,-2750.55071263,0.00021847,2]
[331078900,1720067443134,-500.0,0.0002189,2]
[331078902,1720067443144,-869.5644617,0.00021898,2]
[331078904,1720067443154,-716.7434968,0.00021899,2]
[331078907,1720067443164,-2000.0,0.000219,2]
[331078909,1720067443174,-1006.38,0.000219,2]
[331078910,1720067443185,-314.64,0.000219,2]
[331078913,1720067443195,-2310.25442656,0.00021905,3]
[331079193,1720067445702,-1675.88211362,0.00021905,2]
[331079221,1720067445790,-424.11788638,0.00021905,2]
[331079226,1720067445800,-21301.89388479,0.00021905,3]
[331079269,1720067445949,-375.93228978,0.00021905,3]
[331079962,1720067597399,1989.670355,0.000258,120]
[331079968,1720068002622,5000.0,0.00025,60]
[331080006,1720068632090,-220.12,0.0001389,3]
[331080007,1720068632100,-523.15529315,0.000139,2]
[331080008,1720068632112,-3424.60720685,0.000139,2]
[331080009,1720068632121,-726.84107906,0.00013999,2]
[331080010,1720068632131,-300.0,0.00013999,2]
[331080011,1720068632140,-10336.04677544,0.00014,2]
[331080014,1720068638033,-367.777,0.00014,2]
[331080015,1720068638056,-266025.14562073,0.00014,2]
[331080016,1720068638163,-12937.08986394,0.00014,2]
[331080017,1720068638360,-1241.73529234,0.00014,2]
[331080018,1720068638386,-27084.00972842,0.00014,2]
[331080237,1720068640384,-500.8849,0.000139,2]
[331080240,1720068640396,-101.15498564,0.00014,2]
[331080253,1720068640578,-402.91773854,0.00014,2]
[331080256,1720068640613,-4614.48271155,0.00014,2]
[331080506,1720068643006,-822.66,0.00014,2]
[331080508,1720068643018,-449.41355224,0.00014,2]
[331080518,1720068643110,-1525.98186201,0.00014,2]
[331080531,1720068643217,-590.06,0.00014,2]
[331080533,1720068643228,-202711.87835649,0.00014,2]
[331080535,1720068643238,-2200.44057014,0.000146,2]
[331080537,1720068643247,-800.0,0.000147,5]
[331080539,1720068643255,-1600.0,0.000148,5]
[331080541,1720068643264,-2400.0,0.000149,5]
[331080543,1720068643274,-10071.06712362,0.00015,2]
[331080545,1720068643285,-582.5254763,0.00015,2]
[331080830,1720068646057,-768.85,0.0001499,3]
[331080832,1720068646067,-149.56629221,0.00015,2]
[331080871,1720068646449,-3150.0,0.00015,2]
[331080873,1720068646461,-578.48521551,0.00015,2]
[331080875,1720068646472,-1474.325,0.00015,2]
[331081484,1720068655909,280.43,0.00025,60]
[331081485,1720068991091,76449.0,0.00011098,2]
[331081486,1720068991118,232133.59887461,0.00011098,2]
[331081487,1720069071435,641.77372059,0.00011098,2]
[331081488,1720069093624,7749.18102501,0.00011098,2]
[331081489,1720069169443,641.77372059,0.00011098,2]
[331081490,1720069261943,641.77372059,0.00011098,2]
[331081491,1720069276948,641.77372059,0.00011098,2]
[331081492,1720069335716,466.76010482,0.00011199,2]
[331081494,1720069389991,641.77372059,0.00011199,2]
[331081496,1720069484965,641.77372059,0.00011199,2]
[331081499,1720069582970,641.77372059,0.00011199,2]
[331081521,1720069682313,1292.69851628,0.00011199,2]
[331081522,1720069705469,641.77372059,0.00011199,2]
[331081523,1720069742825,5597.5405427,0.00011199,2]
[331081524,1720069796485,641.77372059,0.00011199,2]
[331081538,1720069833367,-239.5842,0.00012503,2]
[331081539,1720069833378,-155.05946444,0.00012504,2]
[331081540,1720069833388,-738.51763493,0.00012603,2]
[331081541,1720069833399,-574.25050338,0.00012603,2]
[331081542,1720069833411,-288.51537332,0.00012603,2]
[331081543,1720069833423,-28.71648837,0.00012603,2]
[331081544,1720069833433,-604.36,0.00012604,2]
[331081545,1720069833443,-300.0,0.00013127,2]
[331081546,1720069833453,-301.22088731,0.00013128,2]
[331081547,1720069833469,-565.09049799,0.00013128,2]
[331081548,1720069833481,-1421.18809713,0.00013128,2]
[331081549,1720069833493,-558.15546194,0.00013128,2]
[331081550,1720069833505,-1266.60175907,0.00013128,2]
[331081551,1720069833521,-4121.07153573,0.00013128,2]
[331081552,1720069833532,-22063.27285827,0.00013128,2]
[331081553,1720069833542,-150.0,0.00013383,2]
[331081554,1720069833552,-1458.59120606,0.00013452,2]
[331081555,1720069833563,-834.56418717,0.00013452,2]
[331081556,1720069833575,-2069.63788035,0.00013452,2]
[331081557,1720069833586,-1103.55713475,0.00013452,2]
[331081558,1720069833598,-518.40021227,0.00013452,2]
[331081559,1720069833610,-296.5600783,0.00013452,2]
[331081560,1720069833621,-4856.79862817,0.00013452,2]
[331081561,1720069833631,-250.0,0.0001354,2]
[331081562,1720069833640,-3036.65,0.00013556,2]
[331081563,1720069833650,-621.60875247,0.00013574,2]
[331081564,1720069833659,-187.93110987,0.00013574,2]
[331081565,1720069833668,-1125.07334237,0.00013699,2]
[331081566,1720069833681,-699.70135202,0.00013699,2]
[331081567,1720069833692,-926.22530561,0.00013699,2]
[331081568,1720069833702,-507.57896175,0.00013699,2]
[331081570,1720069833714,-631.95103825,0.00013699,2]
[331081572,1720069833729,-200.0,0.00013723,2]
[331081574,1720069833739,-246.66004423,0.00013726,2]
[331081577,1720069833751,-9753.33995577,0.00013726,2]
[331081579,1720069833761,-154.36,0.00013733,2]
[331081581,1720069833771,-273.25,0.00013773,2]
[331081582,1720069833780,-200.0,0.00013833,2]
[331081584,1720069833789,-4037.35156849,0.0001407,2]
[331081586,1720069833803,-5409.28786295,0.0001407,2]
[331081588,1720069833816,-3889.88056856,0.0001407,2]
[331081589,1720069833825,-154.36,0.0001409,2]
[331081590,1720069833835,-1500.0,0.0001412,5]
[331081591,1720069834027,-150.0,0.00014358,2]
[331081592,1720069834044,-251.0,0.00014409,2]
[331081593,1720069834053,-566.64,0.00014426,2]
[331081594,1720069834063,-499.99,0.00014426,2]
[331081595,1720069834072,-154.36,0.00014448,2]
[331081596,1720069834081,-177.7859223,0.00014675,2]
[331081597,1720069834092,-700.0,0.000147,5]
[331081598,1720069834102,-1400.0,0.000148,5]
[331081599,1720069834111,-604.36,0.00014868,2]
[331081600,1720069834120,-180.0,0.00014899,2]
[331081601,1720069834129,-1856.8783,0.000149,2]
[331081602,1720069834139,-4798.3702,0.000149,2]
[331081603,1720069834148,-1236.6791,0.000149,2]
[331081604,1720069834157,-2100.0,0.000149,5]
[331081605,1720069834166,-220.33,0.00014904,2]
[331081606,1720069834175,-222.39746096,0.00014908,2]
[331081607,1720069834185,-11325.99396695,0.00014908,2]
[331081608,1720069834195,-175.14235165,0.00014908,2]
[331081609,1720069834204,-234.69054935,0.00014908,2]
[331081610,1720069834215,-323.13881243,0.00014908,2]
[331081611,1720069834225,-3818.70109817,0.00014939,2]
[331081612,1720069834234,-179.11281343,0.00014949,2]
[331081613,1720069834244,-4108.74367325,0.00014949,2]
[331081614,1720069834254,-172.85,0.00014984,2]
[331081615,1720069834263,-381.67178115,0.0001499,2]
[331081616,1720069834273,-500.0,0.00014999,2]
[331081617,1720069834282,-500.0,0.00014999,2]
[331081618,1720069834292,-500.0,0.00014999,2]
[331081619,1720069834301,-500.0,0.00014999,2]
[331081620,1720069834311,-500.0,0.00014999,2]
[331081621,1720069834320,-500.0,0.00014999,2]
[331081622,1720069834330,-500.0,0.00014999,2]
[331081623,1720069834339,-500.0,0.00014999,2]
[331081624,1720069834351,-500.0,0.00014999,2]
[331081625,1720069834359,-162.54981694,0.00014999,2]
[331081626,1720069834368,-500.0,0.00014999,2]
[331081627,1720069834380,-188.25763934,0.00014999,2]
[331081628,1720069834390,-500.0,0.00014999,2]
[331081629,1720069834399,-500.0,0.00014999,2]
[331081630,1720069834408,-195.98769533,0.00014999,2]
[331081631,1720069834418,-500.0,0.00014999,2]
[331081632,1720069834427,-228.29745087,0.00014999,2]
[331081633,1720069834436,-121759.16104228,0.00015,2]
[331081634,1720069834448,-1302.74006163,0.00015,2]
[331081635,1720069834464,-10916.93811078,0.00015,2]
[331081636,1720069834475,-12182.78132822,0.00015,2]
[331081637,1720069834486,-138233.15503492,0.00015,2]
[331081638,1720069834497,-4384.90963218,0.00015,2]
[331081639,1720069834508,-1916.80238943,0.00015,2]
[331081640,1720069834520,-1506.26770272,0.00015,2]
[331081641,1720069834532,-706.07482364,0.00015,2]
[331081659,1720069838197,-301.52983708,0.00013574,2]
[331081660,1720069838207,-888.46150787,0.00015,2]
[331081661,1720069838218,-4791.20233992,0.00015,2]
[331081662,1720069838283,-3511.99297866,0.00015,2]
[331081663,1720069838326,-6014.02367872,0.00015,2]
[331081664,1720069838338,-622.83715495,0.00015,2]
[331081665,1720069838370,-1485.99999982,0.00015,2]
[331081666,1720069838415,-12163.00767861,0.00015,2]
[331081667,1720069838427,-3361.06858955,0.00015,2]
[331081668,1720069838456,-609.55481835,0.00015,2]
[331081669,1720069838499,-459.8353379,0.00015,2]
[331081670,1720069838511,-16592.60688411,0.00015,2]
[331081671,1720069838541,-326.28809214,0.00015,2]
[331081672,1720069838553,-556.34975306,0.00015,2]
[331081673,1720069838567,-1340.01178555,0.00015,2]
[331081674,1720069838578,-2835.95935006,0.00015,2]
[331081675,1720069838590,-980.81520194,0.00015,2]
[331081676,1720069838603,-24502.52742625,0.00015,2]
[331081854,1720069840485,-321.25139709,0.00015,2]
[331081861,1720069840548,-90539.76516271,0.00015,2]
[331081869,1720069840607,-50614.0985667,0.00015,2]
[331081887,1720069840775,-944129.75954804,0.00015,2]
[331081890,1720069840791,-188218.26946799,0.00015,2]
[331081892,1720069840803,-628.83343938,0.00015008,2]
[331081894,1720069840812,-296.7,0.00015109,2]
[331081896,1720069840822,-1270.85793586,0.00015166,2]
[331081898,1720069840832,-168.42,0.00015214,2]
[331081900,1720069840841,-155.56133012,0.00015399,2]
[331081902,1720069840852,-2627.70687559,0.00015399,2]
[331081904,1720069840862,-200.0,0.00015438,2]
[331081906,1720069840872,-250.0,0.0001557,2]
[331081908,1720069840881,-872.61248846,0.00015579,2]
[331081911,1720069840891,-308.12292157,0.00015579,2]
[331081913,1720069840901,-4108.74367314,0.00015671,2]
[331081915,1720069840911,-150.0,0.00015671,2]
[331081917,1720069840920,-11325.9939669,0.00015795,2]
[331081919,1720069840930,-196.41369686,0.00015832,2]
[331081921,1720069840940,-296.7,0.00015864,2]
[331081923,1720069840949,-4108.74367314,0.00016393,2]
[331081925,1720069840959,-296.7,0.00016619,2]
[331081927,1720069840968,-381.67178115,0.00016672,2]
[331081929,1720069840978,-11325.9939669,0.00016682,2]
[331081931,1720069840987,-155.19539045,0.00016808,2]